[Event "Titled Tuesday Blitz May 4 2021"]
[White "Reprintsev, Alexander"]
[Black "Real De Azua, Ernesto"]
[WhiteFideId "14100541"]
[BlackFideId "108154"]
[WhiteElo "2194"]
[BlackElo "2476"]
[Result "0-1"]
[Round "10"]
[TimeControl "180+1"]
[Date "2021.05.04"]
[WhiteClock "0:00:15"]
[BlackClock "0:00:21"]

1. e4 {[%clk 0:02:52]}  e5 {[%clk 0:02:54]} 2. f4 {[%clk 0:02:43]}  exf4 {[%clk 0:02:44]} 3. Bc4 {[%clk 0:02:42]}  c6 {[%clk 0:02:34]} 4. Qe2 {[%clk 0:02:36]}  Be7 {[%clk 0:02:27]} 5. Nc3 {[%clk 0:02:33]}  d5 {[%clk 0:02:23]} 6. exd5 {[%clk 0:02:33]}  Nf6 {[%clk 0:02:24]} 7. d4 {[%clk 0:02:31]}  cxd5 {[%clk 0:02:20]} 8. Bb5+ {[%clk 0:02:27]}  Nc6 {[%clk 0:02:11]} 9. Bxf4 {[%clk 0:02:27]}  O-O {[%clk 0:02:11]} 10. Nf3 {[%clk 0:02:26]}  Bg4 {[%clk 0:02:09]} 11. O-O-O {[%clk 0:02:22]}  Bb4 {[%clk 0:02:04]} 12. Bxc6 {[%clk 0:01:49]}  bxc6 {[%clk 0:01:58]} 13. Bg5 {[%clk 0:01:49]}  Bxc3 {[%clk 0:01:48]} 14. bxc3 {[%clk 0:01:49]}  Qd6 {[%clk 0:01:44]} 15. Bxf6 {[%clk 0:01:46]}  Qxf6 {[%clk 0:01:45]} 16. Qe5 {[%clk 0:01:42]}  Qd8 {[%clk 0:01:42]} 17. Kd2 {[%clk 0:01:20]}  Re8 {[%clk 0:01:28]} 18. Qf4 {[%clk 0:01:11]}  Re4 {[%clk 0:01:22]} 19. Qg3 {[%clk 0:01:06]}  Qf6 {[%clk 0:01:19]} 20. Rdf1 {[%clk 0:01:00]}  Qh6+ {[%clk 0:01:14]} 21. Kd1 {[%clk 0:00:55]}  Qe3 {[%clk 0:00:45]} 22. h3 {[%clk 0:00:47]}  Bh5 {[%clk 0:00:39]} 23. Qd6 {[%clk 0:00:19]}  Qxc3 {[%clk 0:00:35]} 24. g4 {[%clk 0:00:19]}  Bg6 {[%clk 0:00:30]} 25. Rf2 {[%clk 0:00:16]}  Qa1+ {[%clk 0:00:22]} 26. Kd2 {[%clk 0:00:15]}  Qxh1 {[%clk 0:00:21]} 0-1


[Site "https://www.chess.com"]

[Event "Titled Tuesday Blitz May 4 2021"]
[White "Rodin, Mihail"]
[Black "Aslanov, Umid"]
[WhiteFideId "4113160"]
[BlackFideId "13412620"]
[WhiteElo "2368"]
[BlackElo "1796"]
[Result "0-1"]
[Round "10"]
[TimeControl "180+1"]
[Date "2021.05.04"]
[WhiteClock "0:00:30"]
[BlackClock "0:00:12"]

1. e4 {[%clk 0:03:00]}  c5 {[%clk 0:02:59]} 2. Nf3 {[%clk 0:03:00]}  d6 {[%clk 0:02:57]} 3. d4 {[%clk 0:02:59]}  cxd4 {[%clk 0:02:57]} 4. Nxd4 {[%clk 0:03:00]}  Nf6 {[%clk 0:02:57]} 5. Nc3 {[%clk 0:03:01]}  a6 {[%clk 0:02:56]} 6. Qf3 {[%clk 0:03:01]}  g6 {[%clk 0:02:53]} 7. h3 {[%clk 0:03:00]}  Bg7 {[%clk 0:02:51]} 8. Be3 {[%clk 0:03:01]}  Bd7 {[%clk 0:02:48]} 9. O-O-O {[%clk 0:03:00]}  O-O {[%clk 0:02:47]} 10. g4 {[%clk 0:03:00]}  Nc6 {[%clk 0:02:45]} 11. g5 {[%clk 0:02:53]}  Nh5 {[%clk 0:02:44]} 12. h4 {[%clk 0:02:51]}  Ne5 {[%clk 0:02:38]} 13. Qg2 {[%clk 0:02:46]}  Rc8 {[%clk 0:02:38]} 14. f4 {[%clk 0:02:23]}  Ng4 {[%clk 0:02:36]} 15. Qf3 {[%clk 0:02:03]}  e5 {[%clk 0:02:32]} 16. Nde2 {[%clk 0:01:56]}  Nxe3 {[%clk 0:02:28]} 17. Qxe3 {[%clk 0:01:55]}  exf4 {[%clk 0:02:28]} 18. Nxf4 {[%clk 0:01:48]}  Nxf4 {[%clk 0:02:26]} 19. Qxf4 {[%clk 0:01:49]}  Qa5 {[%clk 0:02:20]} 20. Nd5 {[%clk 0:01:19]}  Qxa2 {[%clk 0:02:18]} 21. Nf6+ {[%clk 0:01:14]}  Bxf6 {[%clk 0:02:14]} 22. Qxf6 {[%clk 0:01:14]}  Qa1+ {[%clk 0:02:11]} 23. Kd2 {[%clk 0:01:13]}  Qa5+ {[%clk 0:01:40]} 24. Kc1 {[%clk 0:01:05]}  Qa1+ {[%clk 0:01:36]} 25. Kd2 {[%clk 0:01:05]}  Rxc2+ {[%clk 0:01:36]} 26. Kxc2 {[%clk 0:01:05]}  Ba4+ {[%clk 0:01:36]} 27. b3 {[%clk 0:00:56]}  Qa2+ {[%clk 0:01:37]} 28. Kd3 {[%clk 0:00:45]}  Qxb3+ {[%clk 0:01:36]} 29. Ke2 {[%clk 0:00:40]}  Qxd1+ {[%clk 0:01:36]} 30. Kf2 {[%clk 0:00:41]}  Rc8 {[%clk 0:01:25]} 31. Bg2 {[%clk 0:00:20]}  Qd3 {[%clk 0:01:18]} 32. Re1 {[%clk 0:00:18]}  Qd2+ {[%clk 0:00:40]} 33. Re2 {[%clk 0:00:16]}  Qd3 {[%clk 0:00:41]} 34. Re1 {[%clk 0:00:15]}  Rc2+ {[%clk 0:00:32]} 35. Kg1 {[%clk 0:00:15]}  Qc3 {[%clk 0:00:32]} 36. Qxc3 {[%clk 0:00:13]}  Rxc3 {[%clk 0:00:33]} 37. Re2 {[%clk 0:00:13]}  Bb5 {[%clk 0:00:28]} 38. Rd2 {[%clk 0:00:13]}  Rd3 {[%clk 0:00:28]} 39. Rc2 {[%clk 0:00:13]}  Kg7 {[%clk 0:00:28]} 40. Rc7 {[%clk 0:00:13]}  Bc6 {[%clk 0:00:28]} 41. Bf1 {[%clk 0:00:13]}  Rd1 {[%clk 0:00:28]} 42. Kf2 {[%clk 0:00:13]}  Rc1 {[%clk 0:00:26]} 43. Be2 {[%clk 0:00:14]}  a5 {[%clk 0:00:26]} 44. Ke3 {[%clk 0:00:15]}  a4 {[%clk 0:00:26]} 45. Bb5 {[%clk 0:00:15]}  Rc3+ {[%clk 0:00:16]} 46. Kd4 {[%clk 0:00:14]}  Rc5 {[%clk 0:00:15]} 47. Bxc6 {[%clk 0:00:14]}  bxc6 {[%clk 0:00:16]} 48. Ra7 {[%clk 0:00:14]}  Rb5 {[%clk 0:00:14]} 49. Rxa4 {[%clk 0:00:15]}  Rb1 {[%clk 0:00:14]} 50. Ke3 {[%clk 0:00:16]}  Rh1 {[%clk 0:00:14]} 51. Ra7 {[%clk 0:00:17]}  Rxh4 {[%clk 0:00:14]} 52. Ra6 {[%clk 0:00:17]}  Rh3+ {[%clk 0:00:14]} 53. Kf4 {[%clk 0:00:17]}  Rc3 {[%clk 0:00:14]} 54. Ra5 {[%clk 0:00:16]}  Rc4 {[%clk 0:00:14]} 55. Ra7 {[%clk 0:00:17]}  d5 {[%clk 0:00:14]} 56. Ke3 {[%clk 0:00:18]}  Rxe4+ {[%clk 0:00:14]} 57. Kd3 {[%clk 0:00:19]}  Re5 {[%clk 0:00:15]} 58. Rc7 {[%clk 0:00:19]}  Rxg5 {[%clk 0:00:15]} 59. Rxc6 {[%clk 0:00:20]}  h5 {[%clk 0:00:16]} 60. Kd4 {[%clk 0:00:20]}  h4 {[%clk 0:00:16]} 61. Rc1 {[%clk 0:00:21]}  f6 {[%clk 0:00:16]} 62. Rh1 {[%clk 0:00:22]}  Rh5 {[%clk 0:00:16]} 63. Ke3 {[%clk 0:00:22]}  Kh6 {[%clk 0:00:17]} 64. Kf4 {[%clk 0:00:23]}  f5 {[%clk 0:00:16]} 65. Ke5 {[%clk 0:00:22]}  h3 {[%clk 0:00:15]} 66. Kf4 {[%clk 0:00:23]}  h2 {[%clk 0:00:15]} 67. Kg3 {[%clk 0:00:24]}  d4 {[%clk 0:00:14]} 68. Kg2 {[%clk 0:00:25]}  Kg5 {[%clk 0:00:14]} 69. Kf2 {[%clk 0:00:24]}  Kf4 {[%clk 0:00:14]} 70. Kg2 {[%clk 0:00:24]}  g5 {[%clk 0:00:15]} 71. Rf1+ {[%clk 0:00:25]}  Ke3 {[%clk 0:00:15]} 72. Kh1 {[%clk 0:00:26]}  f4 {[%clk 0:00:15]} 73. Rf3+ {[%clk 0:00:25]}  Ke4 {[%clk 0:00:14]} 74. Rf2 {[%clk 0:00:25]}  Kd5 {[%clk 0:00:09]} 75. Rd2 {[%clk 0:00:26]}  Rh6 {[%clk 0:00:07]} 76. Rg2 {[%clk 0:00:25]}  Re6 {[%clk 0:00:07]} 77. Rxg5+ {[%clk 0:00:25]}  Re5 {[%clk 0:00:07]} 78. Kxh2 {[%clk 0:00:26]}  Rxg5 {[%clk 0:00:07]} 79. Kh3 {[%clk 0:00:27]}  d3 {[%clk 0:00:08]} 80. Kh4 {[%clk 0:00:28]}  d2 {[%clk 0:00:08]} 81. Kxg5 {[%clk 0:00:29]}  d1=Q {[%clk 0:00:09]} 82. Kxf4 {[%clk 0:00:30]}  Qd4+ {[%clk 0:00:09]} 83. Kf3 {[%clk 0:00:30]}  Qe4+ {[%clk 0:00:10]} 84. Kf2 {[%clk 0:00:30]}  Ke5 {[%clk 0:00:09]} 85. Kf1 {[%clk 0:00:31]}  Qf4+ {[%clk 0:00:09]} 86. Ke2 {[%clk 0:00:31]}  Qg3 {[%clk 0:00:09]} 87. Kd2 {[%clk 0:00:30]}  Ke4 {[%clk 0:00:10]} 88. Kc2 {[%clk 0:00:30]}  Qd3+ {[%clk 0:00:11]} 89. Kc1 {[%clk 0:00:30]}  Kd4 {[%clk 0:00:12]} 90. Kb2 {[%clk 0:00:30]}  Kc4 {[%clk 0:00:13]} 91. Ka1 {[%clk 0:00:30]}  Qd6 {[%clk 0:00:12]} 92. Kb2 {[%clk 0:00:30]}  Qb6+ {[%clk 0:00:12]} 93. Kc1 {[%clk 0:00:29]}  Qf2 {[%clk 0:00:12]} 94. Kd1 {[%clk 0:00:30]}  Kc3 {[%clk 0:00:12]} 0-1


[Site "https://www.chess.com"]

[Event "Titled Tuesday Blitz May 4 2021"]
[White "Roque Sola, Gisela"]
[Black "Shankovskyi, Andrii"]
[WhiteFideId "5120241"]
[BlackFideId "14121565"]
[WhiteElo "1863"]
[BlackElo "2269"]
[Result "1-0"]
[Round "10"]
[TimeControl "180+1"]
[Date "2021.05.04"]
[WhiteClock "0:00:58"]
[BlackClock "0:00:02"]

1. c4 {[%clk 0:03:00]}  e6 {[%clk 0:02:48]} 2. Nf3 {[%clk 0:02:58]}  d5 {[%clk 0:02:44]} 3. b3 {[%clk 0:02:57]}  Nf6 {[%clk 0:02:41]} 4. g3 {[%clk 0:02:56]}  Bc5 {[%clk 0:02:39]} 5. Bg2 {[%clk 0:02:55]}  O-O {[%clk 0:02:38]} 6. O-O {[%clk 0:02:54]}  Nc6 {[%clk 0:02:36]} 7. e3 {[%clk 0:02:54]}  Bd7 {[%clk 0:02:36]} 8. d4 {[%clk 0:02:54]}  Be7 {[%clk 0:02:34]} 9. Nc3 {[%clk 0:02:50]}  Re8 {[%clk 0:02:12]} 10. Bb2 {[%clk 0:02:34]}  a6 {[%clk 0:01:22]} 11. Ne5 {[%clk 0:02:32]}  Bf8 {[%clk 0:01:10]} 12. cxd5 {[%clk 0:02:25]}  exd5 {[%clk 0:01:09]} 13. Nxd5 {[%clk 0:02:23]}  Nxe5 {[%clk 0:01:06]} 14. dxe5 {[%clk 0:02:21]}  Nxd5 {[%clk 0:01:04]} 15. Qxd5 {[%clk 0:02:19]}  c6 {[%clk 0:01:03]} 16. Qd2 {[%clk 0:02:14]}  Qc7 {[%clk 0:01:00]} 17. Rad1 {[%clk 0:02:11]}  Rad8 {[%clk 0:00:57]} 18. Qc2 {[%clk 0:02:08]}  g6 {[%clk 0:00:51]} 19. Qc3 {[%clk 0:02:07]}  Be6 {[%clk 0:00:42]} 20. Rxd8 {[%clk 0:02:04]}  Rxd8 {[%clk 0:00:42]} 21. f4 {[%clk 0:01:53]}  Bg7 {[%clk 0:00:20]} 22. e4 {[%clk 0:01:46]}  Qb6+ {[%clk 0:00:20]} 23. Kh1 {[%clk 0:01:45]}  Bg4 {[%clk 0:00:17]} 24. f5 {[%clk 0:01:42]}  gxf5 {[%clk 0:00:16]} 25. exf5 {[%clk 0:01:43]}  Be2 {[%clk 0:00:12]} 26. Re1 {[%clk 0:01:37]}  Qf2 {[%clk 0:00:11]} 27. f6 {[%clk 0:01:32]}  Bh6 {[%clk 0:00:10]} 28. e6 {[%clk 0:01:28]}  Bd2 {[%clk 0:00:07]} 29. exf7+ {[%clk 0:01:27]}  Kxf7 {[%clk 0:00:07]} 30. Rxe2 {[%clk 0:01:02]}  Qxe2 {[%clk 0:00:02]} 31. Qc4+ {[%clk 0:00:58]} 1-0


[Site "https://www.chess.com"]

[Event "Titled Tuesday Blitz May 4 2021"]
[White "Rorrer, Grayson"]
[Black "Martin, Lewis"]
[WhiteFideId "30944996"]
[BlackFideId "410551"]
[WhiteElo "2400"]
[BlackElo "2145"]
[Result "1-0"]
[Round "10"]
[TimeControl "180+1"]
[Date "2021.05.04"]
[WhiteClock "0:00:51"]
[BlackClock "0:00:06"]

1. e4 {[%clk 0:03:00]}  c5 {[%clk 0:02:59]} 2. Nf3 {[%clk 0:03:00]}  d6 {[%clk 0:03:00]} 3. d4 {[%clk 0:03:00]}  cxd4 {[%clk 0:03:01]} 4. Nxd4 {[%clk 0:03:01]}  Nf6 {[%clk 0:03:01]} 5. Nc3 {[%clk 0:03:01]}  a6 {[%clk 0:03:01]} 6. h3 {[%clk 0:03:00]}  e5 {[%clk 0:03:01]} 7. Nf3 {[%clk 0:03:01]}  b5 {[%clk 0:03:00]} 8. Bg5 {[%clk 0:03:01]}  Be7 {[%clk 0:02:57]} 9. Bxf6 {[%clk 0:03:01]}  Bxf6 {[%clk 0:02:57]} 10. Nd5 {[%clk 0:03:02]}  Be6 {[%clk 0:02:54]} 11. a4 {[%clk 0:03:01]}  b4 {[%clk 0:02:49]} 12. Nxb4 {[%clk 0:03:00]}  O-O {[%clk 0:02:47]} 13. c3 {[%clk 0:02:57]}  Nd7 {[%clk 0:02:45]} 14. Bxa6 {[%clk 0:02:53]}  Nc5 {[%clk 0:02:35]} 15. Bd3 {[%clk 0:02:41]}  d5 {[%clk 0:02:29]} 16. exd5 {[%clk 0:02:39]}  e4 {[%clk 0:01:44]} 17. dxe6 {[%clk 0:02:38]}  exd3 {[%clk 0:01:36]} 18. exf7+ {[%clk 0:02:35]}  Rxf7 {[%clk 0:01:36]} 19. O-O {[%clk 0:02:36]}  Qd6 {[%clk 0:01:28]} 20. Re1 {[%clk 0:02:29]}  Raf8 {[%clk 0:01:11]} 21. a5 {[%clk 0:02:23]}  Bd8 {[%clk 0:01:10]} 22. Re3 {[%clk 0:02:14]}  Bc7 {[%clk 0:01:11]} 23. Nxd3 {[%clk 0:01:48]}  Rxf3 {[%clk 0:00:45]} 24. Rxf3 {[%clk 0:01:46]}  Rxf3 {[%clk 0:00:41]} 25. Qxf3 {[%clk 0:01:47]}  Nxd3 {[%clk 0:00:30]} 26. Rd1 {[%clk 0:01:23]}  Qh2+ {[%clk 0:00:28]} 27. Kf1 {[%clk 0:01:23]}  Nf4 {[%clk 0:00:29]} 28. Qa8+ {[%clk 0:01:07]}  Kf7 {[%clk 0:00:29]} 29. Rd7+ {[%clk 0:01:07]}  Kg6 {[%clk 0:00:22]} 30. Qc6+ {[%clk 0:01:02]}  Kh5 {[%clk 0:00:19]} 31. g3 {[%clk 0:00:50]}  Qxh3+ {[%clk 0:00:17]} 32. Ke1 {[%clk 0:00:49]}  Ng2+ {[%clk 0:00:08]} 33. Ke2 {[%clk 0:00:49]}  Qg4+ {[%clk 0:00:07]} 34. Qf3 {[%clk 0:00:49]}  Qxf3+ {[%clk 0:00:06]} 35. Kxf3 {[%clk 0:00:50]}  Ne1+ {[%clk 0:00:06]} 36. Ke2 {[%clk 0:00:51]} 1-0


[Site "https://www.chess.com"]

[Event "Titled Tuesday Blitz May 4 2021"]
[White "Rytenko, Vsevolod"]
[Black "Grigoryan, Meri"]
[WhiteFideId "14133040"]
[BlackFideId "13300571"]
[WhiteElo "2228"]
[BlackElo "2007"]
[Result "1/2-1/2"]
[Round "10"]
[TimeControl "180+1"]
[Date "2021.05.04"]
[WhiteClock "0:00:09"]
[BlackClock "0:00:09"]

1. d4 {[%clk 0:02:49]}  d5 {[%clk 0:03:00]} 2. Nf3 {[%clk 0:02:48]}  Nf6 {[%clk 0:03:00]} 3. Bg5 {[%clk 0:02:48]}  e6 {[%clk 0:02:59]} 4. e3 {[%clk 0:02:47]}  c5 {[%clk 0:02:58]} 5. c4 {[%clk 0:02:46]}  Nc6 {[%clk 0:02:58]} 6. Nc3 {[%clk 0:02:45]}  dxc4 {[%clk 0:02:58]} 7. Bxc4 {[%clk 0:02:45]}  cxd4 {[%clk 0:02:58]} 8. Nxd4 {[%clk 0:02:45]}  Nxd4 {[%clk 0:02:58]} 9. exd4 {[%clk 0:02:45]}  Be7 {[%clk 0:02:57]} 10. O-O {[%clk 0:02:45]}  O-O {[%clk 0:02:57]} 11. Rc1 {[%clk 0:02:45]}  Bd7 {[%clk 0:02:54]} 12. d5 {[%clk 0:02:22]}  Nxd5 {[%clk 0:02:43]} 13. Bxd5 {[%clk 0:02:05]}  Bxg5 {[%clk 0:02:37]} 14. f4 {[%clk 0:02:05]}  exd5 {[%clk 0:02:30]} 15. fxg5 {[%clk 0:02:04]}  Qxg5 {[%clk 0:02:29]} 16. Qxd5 {[%clk 0:01:57]}  Qxd5 {[%clk 0:02:07]} 17. Nxd5 {[%clk 0:01:58]}  Be6 {[%clk 0:01:55]} 18. Nc7 {[%clk 0:01:56]}  Rac8 {[%clk 0:01:49]} 19. Nxe6 {[%clk 0:01:51]}  fxe6 {[%clk 0:01:16]} 20. Rxf8+ {[%clk 0:01:49]}  Rxf8 {[%clk 0:01:15]} 21. Rc7 {[%clk 0:01:49]}  Rf7 {[%clk 0:01:06]} 22. Rc8+ {[%clk 0:01:49]}  Rf8 {[%clk 0:01:06]} 23. Rc7 {[%clk 0:01:48]}  Rf7 {[%clk 0:01:02]} 24. Rc8+ {[%clk 0:01:48]}  Rf8 {[%clk 0:01:02]} 25. Rc4 {[%clk 0:01:48]}  Rf7 {[%clk 0:00:56]} 26. g3 {[%clk 0:01:48]}  Re7 {[%clk 0:00:56]} 27. Kf2 {[%clk 0:01:47]}  Kf7 {[%clk 0:00:56]} 28. Ke3 {[%clk 0:01:48]}  Kf6 {[%clk 0:00:57]} 29. Ke4 {[%clk 0:01:48]}  Rd7 {[%clk 0:00:54]} 30. h4 {[%clk 0:01:43]}  b5 {[%clk 0:00:51]} 31. Rc5 {[%clk 0:01:39]}  a6 {[%clk 0:00:51]} 32. b3 {[%clk 0:01:26]}  Rd2 {[%clk 0:00:49]} 33. a4 {[%clk 0:01:27]}  Re2+ {[%clk 0:00:35]} 34. Kf4 {[%clk 0:01:18]}  e5+ {[%clk 0:00:22]} 35. Kg4 {[%clk 0:01:19]}  Re4+ {[%clk 0:00:19]} 36. Kf3 {[%clk 0:01:16]}  Rb4 {[%clk 0:00:19]} 37. Rc6+ {[%clk 0:01:11]}  Kf5 {[%clk 0:00:17]} 38. g4+ {[%clk 0:00:24]}  Rxg4 {[%clk 0:00:17]} 39. axb5 {[%clk 0:00:24]}  axb5 {[%clk 0:00:16]} 40. h5 {[%clk 0:00:21]}  Rb4 {[%clk 0:00:14]} 41. h6 {[%clk 0:00:22]}  gxh6 {[%clk 0:00:13]} 42. Rxh6 {[%clk 0:00:23]}  Rxb3+ {[%clk 0:00:13]} 43. Ke2 {[%clk 0:00:23]}  Rb2+ {[%clk 0:00:12]} 44. Kd3 {[%clk 0:00:22]}  e4+ {[%clk 0:00:12]} 45. Kc3 {[%clk 0:00:21]}  Rg2 {[%clk 0:00:11]} 46. Rxh7 {[%clk 0:00:21]}  e3 {[%clk 0:00:11]} 47. Kd3 {[%clk 0:00:19]}  Rg3 {[%clk 0:00:09]} 48. Rh5+ {[%clk 0:00:18]}  Kf4 {[%clk 0:00:08]} 49. Rxb5 {[%clk 0:00:17]}  Kf3 {[%clk 0:00:08]} 50. Rf5+ {[%clk 0:00:16]}  Kg2 {[%clk 0:00:08]} 51. Ke2 {[%clk 0:00:16]}  Rg4 {[%clk 0:00:05]} 52. Rf6 {[%clk 0:00:16]}  Re4 {[%clk 0:00:05]} 53. Rg6+ {[%clk 0:00:16]}  Kh3 {[%clk 0:00:05]} 54. Kf3 {[%clk 0:00:17]}  Rh4 {[%clk 0:00:03]} 55. Rg1 {[%clk 0:00:12]}  Kh2 {[%clk 0:00:03]} 56. Rg2+ {[%clk 0:00:13]}  Kh1 {[%clk 0:00:03]} 57. Re2 {[%clk 0:00:13]}  Rh3+ {[%clk 0:00:03]} 58. Kg4 {[%clk 0:00:13]}  Rh2 {[%clk 0:00:03]} 59. Re1+ {[%clk 0:00:10]}  Kg2 {[%clk 0:00:03]} 60. Rxe3 {[%clk 0:00:11]}  Kg1 {[%clk 0:00:03]} 61. Kg3 {[%clk 0:00:11]}  Rg2+ {[%clk 0:00:03]} 62. Kf3 {[%clk 0:00:10]}  Rf2+ {[%clk 0:00:04]} 63. Kg3 {[%clk 0:00:10]}  Rg2+ {[%clk 0:00:04]} 64. Kf4 {[%clk 0:00:10]}  Rf2+ {[%clk 0:00:04]} 65. Ke4 {[%clk 0:00:10]}  Kg2 {[%clk 0:00:04]} 66. Kd4 {[%clk 0:00:10]}  Kf1 {[%clk 0:00:05]} 67. Kd3 {[%clk 0:00:09]}  Kg1 {[%clk 0:00:05]} 68. Rh3 {[%clk 0:00:09]}  Kf1 {[%clk 0:00:05]} 69. Ke3 {[%clk 0:00:09]}  Kg2 {[%clk 0:00:04]} 70. Rh8 {[%clk 0:00:08]}  Rf1 {[%clk 0:00:04]} 71. Rg8+ {[%clk 0:00:07]}  Kh3 {[%clk 0:00:05]} 72. Ke2 {[%clk 0:00:07]}  Rf6 {[%clk 0:00:05]} 73. Rh8+ {[%clk 0:00:08]}  Kg4 {[%clk 0:00:05]} 74. Rg8+ {[%clk 0:00:09]}  Kf5 {[%clk 0:00:05]} 75. Ke3 {[%clk 0:00:10]}  Ke5 {[%clk 0:00:06]} 76. Rg5+ {[%clk 0:00:09]}  Rf5 {[%clk 0:00:06]} 77. Rg1 {[%clk 0:00:10]}  Kf6 {[%clk 0:00:06]} 78. Ke4 {[%clk 0:00:10]}  Re5+ {[%clk 0:00:06]} 79. Kd4 {[%clk 0:00:10]}  Rf5 {[%clk 0:00:07]} 80. Rh1 {[%clk 0:00:08]}  Rg5 {[%clk 0:00:07]} 81. Ke4 {[%clk 0:00:09]}  Rg4+ {[%clk 0:00:07]} 82. Kf3 {[%clk 0:00:09]}  Rg6 {[%clk 0:00:07]} 83. Ra1 {[%clk 0:00:09]}  Kf5 {[%clk 0:00:07]} 84. Ra5+ {[%clk 0:00:08]}  Kf6 {[%clk 0:00:07]} 85. Kf4 {[%clk 0:00:09]}  Kg7 {[%clk 0:00:08]} 86. Kf5 {[%clk 0:00:09]}  Rf6+ {[%clk 0:00:08]} 87. Kg5 {[%clk 0:00:09]}  Rc6 {[%clk 0:00:08]} 88. Ra7+ {[%clk 0:00:09]}  Kf8 {[%clk 0:00:08]} 89. Kf5 {[%clk 0:00:09]}  Ke8 {[%clk 0:00:08]} 90. Ke5 {[%clk 0:00:10]}  Kd8 {[%clk 0:00:09]} 91. Kd5 {[%clk 0:00:10]}  Rh6 {[%clk 0:00:09]} 92. Rg7 {[%clk 0:00:09]}  Ke8 {[%clk 0:00:09]} 1/2-1/2


[Site "https://www.chess.com"]

[Event "Titled Tuesday Blitz May 4 2021"]
[White "Sadhwani, Raunak"]
[Black "Gusarov, Grigory"]
[WhiteFideId "35093487"]
[BlackFideId "24102172"]
[WhiteElo "2514"]
[BlackElo "2285"]
[Result "1/2-1/2"]
[Round "10"]
[TimeControl "180+1"]
[Date "2021.05.04"]
[WhiteClock "0:00:36"]
[BlackClock "0:00:40"]

1. b3 {[%clk 0:03:00]}  c6 {[%clk 0:02:58]} 2. Bb2 {[%clk 0:03:01]}  d5 {[%clk 0:02:59]} 3. Nf3 {[%clk 0:03:01]}  Nf6 {[%clk 0:02:59]} 4. g3 {[%clk 0:03:02]}  Bg4 {[%clk 0:02:59]} 5. Bg2 {[%clk 0:03:02]}  Nbd7 {[%clk 0:02:59]} 6. O-O {[%clk 0:03:02]}  e6 {[%clk 0:02:59]} 7. d3 {[%clk 0:03:02]}  Bc5 {[%clk 0:02:57]} 8. Nbd2 {[%clk 0:03:02]}  O-O {[%clk 0:02:57]} 9. e4 {[%clk 0:03:01]}  a5 {[%clk 0:02:56]} 10. a3 {[%clk 0:03:01]}  Qc7 {[%clk 0:02:50]} 11. h3 {[%clk 0:02:56]}  Bxf3 {[%clk 0:02:50]} 12. Qxf3 {[%clk 0:02:56]}  dxe4 {[%clk 0:02:46]} 13. Nxe4 {[%clk 0:02:49]}  Nxe4 {[%clk 0:02:45]} 14. Qxe4 {[%clk 0:02:48]}  Nf6 {[%clk 0:02:37]} 15. Bxf6 {[%clk 0:02:34]}  gxf6 {[%clk 0:02:37]} 16. d4 {[%clk 0:02:32]}  Be7 {[%clk 0:02:36]} 17. c4 {[%clk 0:02:32]}  f5 {[%clk 0:02:36]} 18. Qe3 {[%clk 0:02:28]}  Bf6 {[%clk 0:02:35]} 19. Rad1 {[%clk 0:02:27]}  Rfe8 {[%clk 0:02:33]} 20. Qf3 {[%clk 0:02:25]}  Bg7 {[%clk 0:02:26]} 21. d5 {[%clk 0:02:24]}  cxd5 {[%clk 0:02:19]} 22. cxd5 {[%clk 0:02:24]}  Rad8 {[%clk 0:02:17]} 23. dxe6 {[%clk 0:02:21]}  fxe6 {[%clk 0:02:17]} 24. Qxb7 {[%clk 0:02:17]}  Qxb7 {[%clk 0:02:14]} 25. Bxb7 {[%clk 0:02:18]}  Bd4 {[%clk 0:02:06]} 26. Ba6 {[%clk 0:02:15]}  Bb2 {[%clk 0:02:05]} 27. Bb5 {[%clk 0:02:10]}  Rxd1 {[%clk 0:01:52]} 28. Rxd1 {[%clk 0:02:11]}  Re7 {[%clk 0:01:53]} 29. b4 {[%clk 0:01:49]}  axb4 {[%clk 0:01:51]} 30. axb4 {[%clk 0:01:50]}  Bc3 {[%clk 0:01:49]} 31. Rb1 {[%clk 0:01:50]}  Rb7 {[%clk 0:01:27]} 32. Bc4 {[%clk 0:01:50]}  Kf7 {[%clk 0:01:18]} 33. b5 {[%clk 0:01:49]}  Kf6 {[%clk 0:01:17]} 34. Rd1 {[%clk 0:01:47]}  Rc7 {[%clk 0:01:15]} 35. Bb3 {[%clk 0:01:26]}  Bb4 {[%clk 0:01:13]} 36. Rb1 {[%clk 0:01:19]}  Bc5 {[%clk 0:01:11]} 37. Kg2 {[%clk 0:01:10]}  Bb6 {[%clk 0:01:08]} 38. Re1 {[%clk 0:01:06]}  e5 {[%clk 0:01:07]} 39. Rd1 {[%clk 0:01:07]}  Ke7 {[%clk 0:01:02]} 40. Rd2 {[%clk 0:00:46]}  Rc5 {[%clk 0:01:01]} 41. Bc2 {[%clk 0:00:32]}  e4 {[%clk 0:00:59]} 42. Ba4 {[%clk 0:00:32]}  Rc4 {[%clk 0:00:52]} 43. Bd1 {[%clk 0:00:32]}  Rd4 {[%clk 0:00:51]} 44. Rxd4 {[%clk 0:00:32]}  Bxd4 {[%clk 0:00:51]} 45. f3 {[%clk 0:00:29]}  exf3+ {[%clk 0:00:43]} 46. Kxf3 {[%clk 0:00:30]}  Be5 {[%clk 0:00:42]} 47. Bc2 {[%clk 0:00:29]}  Kf6 {[%clk 0:00:42]} 48. b6 {[%clk 0:00:29]}  h5 {[%clk 0:00:38]} 49. b7 {[%clk 0:00:24]}  h4 {[%clk 0:00:33]} 50. gxh4 {[%clk 0:00:14]}  Kg7 {[%clk 0:00:30]} 51. Bxf5 {[%clk 0:00:14]}  Kh8 {[%clk 0:00:29]} 52. Ke4 {[%clk 0:00:15]}  Bb8 {[%clk 0:00:29]} 53. h5 {[%clk 0:00:16]}  Bh2 {[%clk 0:00:29]} 54. Bg4 {[%clk 0:00:15]}  Bb8 {[%clk 0:00:29]} 55. Kf5 {[%clk 0:00:16]}  Bh2 {[%clk 0:00:29]} 56. Ke6 {[%clk 0:00:17]}  Bg3 {[%clk 0:00:30]} 57. Kd7 {[%clk 0:00:18]}  Bh2 {[%clk 0:00:30]} 58. Kc8 {[%clk 0:00:18]}  Bg3 {[%clk 0:00:31]} 59. Bf5 {[%clk 0:00:17]}  Bh2 {[%clk 0:00:31]} 60. Be6 {[%clk 0:00:17]}  Bg3 {[%clk 0:00:31]} 61. Kd7 {[%clk 0:00:17]}  Bh2 {[%clk 0:00:32]} 62. Ke8 {[%clk 0:00:18]}  Bg3 {[%clk 0:00:32]} 63. Kf7 {[%clk 0:00:19]}  Bh2 {[%clk 0:00:32]} 64. Kg6 {[%clk 0:00:20]}  Bg3 {[%clk 0:00:33]} 65. h6 {[%clk 0:00:20]}  Bh2 {[%clk 0:00:33]} 66. h7 {[%clk 0:00:21]}  Bg3 {[%clk 0:00:34]} 67. Kf5 {[%clk 0:00:21]}  Bh2 {[%clk 0:00:34]} 68. Kg4 {[%clk 0:00:22]}  Bb8 {[%clk 0:00:33]} 69. h4 {[%clk 0:00:22]}  Bc7 {[%clk 0:00:34]} 70. h5 {[%clk 0:00:23]}  Bb8 {[%clk 0:00:34]} 71. Bf5 {[%clk 0:00:24]}  Bc7 {[%clk 0:00:34]} 72. Bg6 {[%clk 0:00:25]}  Bb8 {[%clk 0:00:35]} 73. Kf5 {[%clk 0:00:22]}  Bc7 {[%clk 0:00:35]} 74. Ke6 {[%clk 0:00:23]}  Bb8 {[%clk 0:00:35]} 75. Kf7 {[%clk 0:00:24]}  Bh2 {[%clk 0:00:34]} 76. Bf5 {[%clk 0:00:25]}  Bg3 {[%clk 0:00:34]} 77. Kg6 {[%clk 0:00:26]}  Bh2 {[%clk 0:00:35]} 78. Be4 {[%clk 0:00:27]}  Bg3 {[%clk 0:00:35]} 79. Bd5 {[%clk 0:00:27]}  Bh2 {[%clk 0:00:35]} 80. Bc4 {[%clk 0:00:28]}  Bb8 {[%clk 0:00:35]} 81. Bb3 {[%clk 0:00:29]}  Bc7 {[%clk 0:00:36]} 82. Ba2 {[%clk 0:00:30]}  Bb8 {[%clk 0:00:36]} 83. Bb1 {[%clk 0:00:31]}  Bc7 {[%clk 0:00:37]} 84. Bc2 {[%clk 0:00:32]}  Bb8 {[%clk 0:00:38]} 85. Bd3 {[%clk 0:00:33]}  Bc7 {[%clk 0:00:38]} 86. Be4 {[%clk 0:00:34]}  Bb8 {[%clk 0:00:39]} 87. Bd3 {[%clk 0:00:34]}  Bc7 {[%clk 0:00:40]} 88. Be4 {[%clk 0:00:35]}  Bb8 {[%clk 0:00:40]} 89. Bd3 {[%clk 0:00:36]} 1/2-1/2


[Site "https://www.chess.com"]